[Event "44th Chess Olympiad Women 2022"]
[Site "Chennai"]
[Date "2022.08.09"]
[Round "11.33"]
[White "Gamage, Desandhi Dhihansa"]
[Black "Ayzenberg, Alena"]
[Result "1/2-1/2"]
[ECO "C07"]
[WhiteElo "1561"]
[BlackElo "2023"]
[Annotator "NA RC"]
[PlyCount "192"]
[EventDate "2022.07.29"]
[EventType "team-tourn"]
[EventCountry "IND"]
[SourceTitle "playchess.com"]
[Source "ChessBase"]
[SourceQuality "1"]
[WhiteTeam "Sri Lanka"]
[BlackTeam "Norway"]
[WhiteTeamCountry "SRI"]
[BlackTeamCountry "NOR"]
[TimeControl "40/5400+30:1800+30"]

1. e4 {[%emt 0:00:07]} e6 {[%emt 0:00:13]} 2. d4 {[%emt 0:00:04]} d5 {[%emt 0:00:06]} 3. Nd2 {[%emt 0:00:05]} c5 {[%emt 0:00:19]} 4. exd5 {[%emt 0:00:05]} Qxd5 {[%emt 0:00:48]} 5. dxc5 {[%emt 0:00:17]} Bxc5 {[%emt 0:00:38]} 6. Ngf3 {[%emt 0:00:28]} Nf6 {[%emt 0:01:23]} 7. Bc4 {[%emt 0:00:37]} Qd6 {[%emt 0:03:57]} 8. O-O {[%emt 0:02:28]} Qc7 {[%emt 0:03:50]} 9. c3 {[%emt 0:04:04]} O-O {[%emt 0:02:25]} 10. Qc2 {[%emt 0:11:16]} Nbd7 {[%emt 0:09:49]} 11. b4 {[%emt 0:07:51]} Bd6 {[%emt 0:01:40]} 12. a4 {[%emt 0:02:08]} b6 {[%emt 0:08:29]} 13. Bd3 {[%emt 0:08:33]} Bb7 {[%emt 0:03:06]} 14. Bb2 {[%emt 0:06:09]} Rac8 {[%emt 0:09:18]} 15. Rac1 {[%emt 0:01:12]} Qb8 {[%emt 0:02:31]} 16. Qb1 {[%emt 0:02:22]} Bf4 {[%emt 0:02:18]} 17. Rcd1 {[%emt 0:07:18]} Qa8 {[%emt 0:03:01]} 18. Be2 {[%emt 0:06:38]} Ne5 {[%emt 0:08:03]} 19. c4 {[%emt 0:08:35]} Bxf3 {[%emt 0:10:42]} 20. Nxf3 {[%emt 0:04:52]} Nxf3+ {[%emt 0:05:08]} 21. Bxf3 {[%emt 0:00:21]} Qb8 {[%emt 0:00:10]} 22. g3 {[%emt 0:04:10]} Be5 {[%emt 0:00:34]} 23. Bxe5 {[%emt 0:01:17]} Qxe5 {[%emt 0:00:06]} 24. Qb3 {[%emt 0:00:37]} Qc7 {[%emt 0:01:54]} 25. Rc1 {[%emt 0:02:22]} Nd7 {[%emt 0:01:25]} 26. Rc2 {[%emt 0:01:58]} a5 {[%emt 0:06:02]} 27. Rb1 {[%emt 0:05:51]} Rb8 {[%emt 0:02:11]} 28. bxa5 {[%emt 0:03:25]} bxa5 {[%emt 0:00:09]} 29. Qa2 {[%emt 0:00:11]} Ne5 {[%emt 0:01:38]} 30. Be2 {[%emt 0:00:32]} Nc6 {[%emt 0:01:11]} 31. Rd2 {[%emt 0:01:13]} Nb4 {[%emt 0:01:34]} 32. Qa1 {[%emt 0:00:31]} Rfd8 {[%emt 0:01:50]} 33. Rbd1 {[%emt 0:00:23]} Rxd2 {[%emt 0:04:25]} 34. Rxd2 {[%emt 0:00:04]} Na6 {[%emt 0:01:03]} 35. Qd1 {[%emt 0:01:02]} Nc5 {[%emt 0:00:29]} 36. Ra2 {[%emt 0:02:54]} g6 {[%emt 0:00:49]} 37. Qc2 {[%emt 0:00:53]} Rb4 {[%emt 0:01:13]} 38. Qc3 {[%emt 0:02:29]} Rb1+ {[%emt 0:01:17]} 39. Kg2 {[%emt 0:00:54]} Rb3 {[%emt 0:00:34]} 40. Qf6 {[%emt 0:01:23]} Ne4 {[%emt 0:01:40]} 41. Qd4 {[%emt 0:30:36]} Nc5 {[%emt 0:04:32]} 42. Rd2 {[%emt 0:00:00]} Qc6+ {[%emt 0:01:41]} 43. f3 {[%emt 0:00:00]} Rb8 {[%emt 0:00:56]} 44. Qe5 {[%emt 0:00:00]} Rc8 {[%emt 0:06:20]} 45. Bd1 {[%emt 0:00:00]} Qb6 {[%emt 0:02:51]} 46. Qf6 {[%emt 0:00:00]} Qc7 {[%emt 0:00:57]} 47. Qg5 {[%emt 0:00:00]} Kg7 {[%emt 0:00:50]} 48. Qe3 {[%emt 0:00:00]} Rb8 {[%emt 0:04:09]} 49. Qc3+ {[%emt 0:00:00]} f6 {[%emt 0:00:22]} 50. Qe3 {[%emt 0:00:00]} Rb4 {[%emt 0:02:16]} 51. Rd4 {[%emt 0:00:00]} e5 {[%emt 0:02:00]} 52. Rd5 {[%emt 0:00:00]} Rxc4 {[%emt 0:01:19]} 53. Qd2 {[%emt 0:00:00]} Qc6 {[%emt 0:03:59]} 54. Rd6 {[%emt 0:00:00]} Qc7 {[%emt 0:00:19]} 55. Rd5 {[%emt 0:00:00]} h5 {[%emt 0:02:14]} 56. Be2 {[%emt 0:00:00]} Rd4 {[%emt 0:01:33]} 57. Rxd4 {[%emt 0:00:00]} exd4 {[%emt 0:00:02]} 58. Qxd4 {[%emt 0:00:00]} Ne6 {[%emt 0:01:45]} 59. Qe3 {[%emt 0:00:00]} Qe5 {[%emt 0:00:48]} 60. Qd2 {[%emt 0:00:19]} Nd4 {[%emt 0:00:32]} 61. Kf2 {[%emt 0:02:29]} h4 {[%emt 0:01:04]} 62. Qe3 {[%emt 0:00:41]} hxg3+ {[%emt 0:00:26]} 63. hxg3 {[%emt 0:00:08]} Qc5 {[%emt 0:00:49]} 64. Kg2 {[%emt 0:01:10]} g5 {[%emt 0:00:39]} 65. Bd3 {[%emt 0:00:50]} Qe5 {[%emt 0:00:51]} 66. Qxe5 {[%emt 0:03:03]} fxe5 {[%emt 0:00:01]} 67. Kf2 {[%emt 0:00:10]} Kf6 {[%emt 0:00:39]} 68. Ke3 {[%emt 0:01:09]} Nb3 {[%emt 0:00:44]} 69. f4 {[%emt 0:00:51]} gxf4+ {[%emt 0:00:43]} 70. gxf4 {[%emt 0:00:07]} Nc5 {[%emt 0:00:13]} 71. fxe5+ {[%emt 0:01:14]} Kxe5 {[%emt 0:00:02]} 72. Bb5 {[%emt 0:00:18]} Kd5 {[%emt 0:00:22]} 73. Kd2 {[%emt 0:00:17]} Kd4 {[%emt 0:00:07]} 74. Kc2 {[%emt 0:00:12]} Ne4 {[%emt 0:00:28]} 75. Kb2 {[%emt 0:00:47]} Kc5 {[%emt 0:00:22]} 76. Kb3 {[%emt 0:00:28]} Nd6 {[%emt 0:00:19]} 77. Ka3 {[%emt 0:00:26]} Nf5 {[%emt 0:01:05]} 78. Kb3 {[%emt 0:00:16]} Kd4 {[%emt 0:00:16]} 79. Kb2 {[%emt 0:00:15]} Nd6 {[%emt 0:00:41]} 80. Kb3 {[%emt 0:00:09]} Ne4 {[%emt 0:00:28]} 81. Kb2 {[%emt 0:00:13]} Nc3 {[%emt 0:01:01]} 82. Kb3 {[%emt 0:00:09]} Nd5 {[%emt 0:00:37]} 83. Kb2 {[%emt 0:00:15]} Kc5 {[%emt 0:00:14]} 84. Kb3 {[%emt 0:00:06]} Nc7 {[%emt 0:00:48]} 85. Bf1 {[%emt 0:00:25]} Ne6 {[%emt 0:00:17]} 86. Bb5 {[%emt 0:00:09]} Nd4+ {[%emt 0:00:06]} 87. Kc3 {[%emt 0:00:23]} Nxb5+ {[%emt 0:00:15]} 88. axb5 {[%emt 0:00:05]} Kxb5 {[%emt 0:00:01]} 89. Kb3 {[%emt 0:00:07]} a4+ {[%emt 0:00:15]} 90. Ka3 {[%emt 0:00:09]} Ka5 {[%emt 0:00:04]} 91. Ka2 {[%emt 0:00:05]} Kb4 {[%emt 0:00:04]} 92. Kb2 {[%emt 0:00:05]} a3+ {[%emt 0:00:03]} 93. Ka2 {[%emt 0:00:03]} Ka4 {[%emt 0:00:03]} 94. Ka1 {[%emt 0:00:09]} Kb3 {[%emt 0:00:04]} 95. Kb1 {[%emt 0:00:04]} a2+ {[%emt 0:00:04]} 96. Ka1 {[%emt 0:00:03]} Ka3 {[%emt 0:00:02]} 1/2-1/2

[Event "44th Chess Olympiad Women 2022"]
[Site "Chennai"]
[Date "2022.08.09"]
[Round "11.33"]
[White "Wickramasinghe, Minethma Lasandi"]
[Black "Machlik, Edit"]
[Result "0-1"]
[ECO "B12"]
[WhiteElo "1541"]
[BlackElo "2084"]
[Annotator "NA RC"]
[PlyCount "76"]
[EventDate "2022.07.29"]
[EventType "team-tourn"]
[EventCountry "IND"]
[SourceTitle "playchess.com"]
[Source "ChessBase"]
[SourceQuality "1"]
[WhiteTeam "Sri Lanka"]
[BlackTeam "Norway"]
[WhiteTeamCountry "SRI"]
[BlackTeamCountry "NOR"]
[TimeControl "40/5400+30:1800+30"]

1. e4 {[%emt 0:00:09]} c6 {[%emt 0:00:05]} 2. d4 {[%emt 0:00:07]} d5 {[%emt 0:00:03]} 3. e5 {[%emt 0:00:06]} Bf5 {[%emt 0:00:45]} 4. Nd2 {[%emt 0:00:33]} e6 {[%emt 0:02:19]} 5. Nb3 {[%emt 0:01:03]} Nd7 {[%emt 0:06:58]} 6. Nf3 {[%emt 0:01:02]} Ne7 {[%emt 0:02:00]} 7. Be2 {[%emt 0:00:52]} Nc8 {[%emt 0:13:30]} 8. O-O {[%emt 0:00:37]} Be7 {[%emt 0:00:09]} 9. a4 {[%emt 0:00:45]} O-O {[%emt 0:00:37]} 10. a5 {[%emt 0:02:22]} a6 {[%emt 0:00:11]} 11. Be3 {[%emt 0:04:49]} Bg4 {[%emt 0:05:32]} 12. Nfd2 {[%emt 0:10:58]} Bxe2 {[%emt 0:02:33]} 13. Qxe2 {[%emt 0:00:02]} Na7 {[%emt 0:04:44]} 14. f4 {[%emt 0:05:10]} f6 {[%emt 0:02:10]} 15. f5 {[%emt 0:12:44]} fxe5 {[%emt 0:07:08]} 16. fxe6 {[%emt 0:06:01]} exd4 {[%emt 0:10:42]} 17. Bxd4 {[%emt 0:03:03]} Nf6 {[%emt 0:06:39]} 18. Bb6 {[%emt 0:05:55]} Qe8 {[%emt 0:04:41]} 19. Nc5 {[%emt 0:06:12]} Nc8 {[%emt 0:02:28]} 20. Ndb3 {[%emt 0:12:12]} Nxb6 {[%emt 0:04:43]} 21. axb6 {[%emt 0:00:13]} Qd8 {[%emt 0:01:42]} 22. Na4 {[%emt 0:02:23]} Bd6 {[%emt 0:04:35]} 23. Rad1 {[%emt 0:07:56]} Qe7 {[%emt 0:03:16]} 24. c4 {[%emt 0:02:52]} dxc4 {[%emt 0:04:59]} 25. Qxc4 {[%emt 0:00:08]} Nd5 {[%emt 0:00:24]} 26. Qe4 {[%emt 0:04:30]} Rae8 {[%emt 0:02:47]} 27. Nd4 {[%emt 0:03:37]} Rf6 {[%emt 0:04:12]} 28. Rde1 {[%emt 0:04:33]} g6 {[%emt 0:01:31]} 29. Kh1 {[%emt 0:02:24]} Ref8 {[%emt 0:00:09]} 30. Rf3 {[%emt 0:00:56]} Rxf3 {[%emt 0:00:46]} 31. Nxf3 {[%emt 0:00:16]} Rf4 {[%emt 0:00:46]} 32. Qc2 {[%emt 0:00:46]} Qf6 {[%emt 0:01:40]} 33. b3 {[%emt 0:00:52]} Bb4 {[%emt 0:00:37]} 34. Re2 {[%emt 0:00:39]} Qa1+ {[%emt 0:00:33]} 35. Ng1 {[%emt 0:00:22]} Rf1 {[%emt 0:00:18]} 36. h3 {[%emt 0:00:25]} Rxg1+ {[%emt 0:00:08]} 37. Kh2 {[%emt 0:00:02]} Bd6+ {[%emt 0:00:29]} 38. g3 {[%emt 0:00:05]} Bxg3# {[%emt 0:00:13]} 0-1

[Event "44th Chess Olympiad Women 2022"]
[Site "Chennai"]
[Date "2022.08.09"]
[Round "11.34"]
[White "Vanduyfhuys, Daria"]
[Black "Obondo, Cynthia Awino"]
[Result "1-0"]
[ECO "E16"]
[WhiteElo "2094"]
[BlackElo "1439"]
[Annotator "NA RC"]
[PlyCount "105"]
[EventDate "2022.07.29"]
[EventType "team-tourn"]
[EventCountry "IND"]
[SourceTitle "playchess.com"]
[Source "ChessBase"]
[SourceQuality "1"]
[WhiteTeam "Belgium"]
[BlackTeam "Kenya"]
[WhiteTeamCountry "BEL"]
[BlackTeamCountry "KEN"]
[TimeControl "40/5400+30:1800+30"]

1. d4 {[%emt 0:00:03]} Nf6 {[%emt 0:03:40]} 2. c4 {[%emt 0:00:10]} e6 {[%emt 0:00:17]} 3. Nf3 {[%emt 0:00:06]} Bb4+ {[%emt 0:00:42]} 4. Bd2 {[%emt 0:00:07]} a5 {[%emt 0:00:29]} 5. g3 {[%emt 0:00:16]} b6 {[%emt 0:01:01]} 6. Bg2 {[%emt 0:00:35]} Bb7 {[%emt 0:00:09]} 7. O-O {[%emt 0:01:08]} O-O {[%emt 0:00:13]} 8. Nc3 {[%emt 0:00:14]} d6 {[%emt 0:01:02]} 9. b3 {[%emt 0:02:16]} Nbd7 {[%emt 0:00:31]} 10. a3 {[%emt 0:00:30]} Bxc3 {[%emt 0:00:36]} 11. Bxc3 {[%emt 0:00:04]} Be4 {[%emt 0:04:32]} 12. Qc1 {[%emt 0:04:00]} Qb8 {[%emt 0:07:20]} 13. Rd1 {[%emt 0:02:53]} b5 {[%emt 0:10:38]} 14. Nd2 {[%emt 0:09:03]} Bxg2 {[%emt 0:00:53]} 15. Kxg2 {[%emt 0:00:05]} Qb7+ {[%emt 0:00:07]} 16. f3 {[%emt 0:00:10]} b4 {[%emt 0:11:20]} 17. axb4 {[%emt 0:00:14]} axb4 {[%emt 0:00:08]} 18. Bb2 {[%emt 0:00:09]} Rxa1 {[%emt 0:04:04]} 19. Bxa1 {[%emt 0:00:09]} c5 {[%emt 0:01:10]} 20. Nf1 {[%emt 0:05:31]} Ra8 {[%emt 0:03:15]} 21. dxc5 {[%emt 0:08:36]} dxc5 {[%emt 0:00:22]} 22. Qd2 {[%emt 0:03:56]} Qc7 {[%emt 0:03:04]} 23. g4 {[%emt 0:03:35]} h6 {[%emt 0:01:59]} 24. Ng3 {[%emt 0:02:07]} Ra3 {[%emt 0:05:46]} 25. g5 {[%emt 0:03:27]} hxg5 {[%emt 0:00:11]} 26. Qxg5 {[%emt 0:00:24]} Kf8 {[%emt 0:05:14]} 27. Ne4 {[%emt 0:11:47]} Ne8 {[%emt 0:12:45]} 28. Qe3 {[%emt 0:12:57]} Qa7 {[%emt 0:03:56]} 29. Bb2 {[%emt 0:00:26]} Ra2 {[%emt 0:00:35]} 30. Rd2 {[%emt 0:01:09]} f6 {[%emt 0:01:16]} 31. Qd3 {[%emt 0:02:40]} Ke7 {[%emt 0:04:12]} 32. Nd6 {[%emt 0:02:13]} Qc7 {[%emt 0:09:45]} 33. Nb5 {[%emt 0:00:53]} Qc6 {[%emt 0:01:26]} 34. Bxf6+ {[%emt 0:00:58]} Nexf6 {[%emt 0:00:57]} 35. Rxa2 {[%emt 0:00:06]} Ne5 {[%emt 0:01:14]} 36. Ra7+ {[%emt 0:00:41]} Nfd7 {[%emt 0:00:17]} 37. Qe3 {[%emt 0:01:16]} Nf7 {[%emt 0:01:01]} 38. Rc7 {[%emt 0:01:05]} Qb6 {[%emt 0:00:19]} 39. Qe4 {[%emt 0:00:55]} Nd6 {[%emt 0:01:28]} 40. Qh4+ {[%emt 0:00:56]} Ke8 {[%emt 0:00:58]} 41. Qh8+ {[%emt 0:31:04]} Nf8 {[%emt 0:30:52]} 42. Qxg7 {[%emt 0:00:29]} Qxc7 {[%emt 0:00:00]} 43. Nxc7+ {[%emt 0:00:00]} Kd8 {[%emt 0:00:00]} 44. Qxf8+ {[%emt 0:00:00]} Kxc7 {[%emt 0:00:00]} 45. Qe7+ {[%emt 0:00:00]} Kc6 {[%emt 0:00:00]} 46. Qxe6 {[%emt 0:00:00]} Kc7 {[%emt 0:00:00]} 47. h4 {[%emt 0:00:00]} Nc8 {[%emt 0:00:00]} 48. h5 {[%emt 0:00:00]} Nb6 {[%emt 0:00:00]} 49. h6 {[%emt 0:00:00]} Kb7 {[%emt 0:00:00]} 50. h7 {[%emt 0:00:00]} Ka6 {[%emt 0:00:00]} 51. h8=Q {[%emt 0:00:00]} Ka5 {[%emt 0:00:00]} 52. Qa1+ {[%emt 0:00:00]} Na4 {[%emt 0:00:00]} 53. Qxa4# {[%emt 0:00:00]} 1-0

[Event "44th Chess Olympiad Women 2022"]
[Site "Chennai"]
[Date "2022.08.09"]
[Round "11.34"]
[White "Barbier, Wiebke"]
[Black "Ndirangu, Joyce Nyaruai"]
[Result "1-0"]
[ECO "B31"]
[WhiteElo "1970"]
[BlackElo "1679"]
[Annotator "TA"]
[PlyCount "119"]
[EventDate "2022.07.29"]
[EventType "team-tourn"]
[EventCountry "IND"]
[SourceTitle "playchess.com"]
[Source "ChessBase"]
[SourceQuality "1"]
[WhiteTeam "Belgium"]
[BlackTeam "Kenya"]
[WhiteTeamCountry "BEL"]
[BlackTeamCountry "KEN"]
[TimeControl "40/5400+30:1800+30"]

{[%evp 9,119,6,4,0,39,40,81,43,48,0,26,15,6,0,54,58,55,55,60,51,34,-27,-28,-28,-31,-27,-32,-26,-15,-22,-39,-40,18,-6,15,2,10,-34,0,-33,0,0,0,0,36,37,206,0,0,0,0,0,0,0,29,25,27,-26,-35,-35,18,54,44,0,158,0,284,270,259,266,262,286,510,512,480,480,561,561,561,561,532,478,471,460,504,478,478,0,429,427,557,515,623,561,835,833,831,814,1901,1902,1770,1797,1539,1110,1479,614,29985,29986,29987,29988,29992,29993]} 1. e4 {[%emt 0:00:02]} c5 {[%emt 0:01:12]} 2. Be2 {[%emt 0:00:04]} d5 {[%emt 0:02:16]} 3. d3 {[%emt 0:00:13]} g6 {[%emt 0:03:21]} 4. f4 {[%emt 0:01:02] [#]} dxe4 $146 {[%emt 0:04:29]} ({Predecessor:} 4... Nc6 5. Nf3 dxe4 6. dxe4 Qxd1+ 7. Bxd1 Bg7 8. c3 e5 9. Na3 Be6 10. Nb5 Kd7 11. Ng5 a6 12. Na3 b5 {½-½ (34) Fedorov,A (2573)-Ponkratov,P (2613) Katowice 2017}) 5. dxe4 {[%emt 0:00:05]} Qxd1+ {[%emt 0:00:07]} 6. Bxd1 {[%emt 0:00:03] B31: Sicilian: 2...Nc6 3 Bb5 g6.} Nf6 {[%emt 0:00:09]} 7. Nc3 {[%emt 0:00:57]} Bg7 {[%emt 0:02:08]} 8. Be3 {[%emt 0:02:16] White is better.} Na6 {[%emt 0:07:27]} 9. Nf3 {[%emt 0:03:29]} (9. h3 $14) 9... O-O {[%emt 0:03:17]} 10. Be2 {[%emt 0:02:27]} Ng4 {[%emt 0:06:18]} 11. Bg1 {[%emt 0:01:04]} Nb4 {[%emt 0:02:42]} ({Better is} 11... Bxc3+ $11 12. bxc3 Nf6) 12. O-O-O $14 {[%emt 0:02:32]} b6 {[%emt 0:01:11]} 13. h3 {[%emt 0:01:32]} Nf6 {[%emt 0:01:36]} 14. e5 {[%emt 0:01:17]} Nh5 {[%emt 0:02:14] [#] White must now prevent ...Ng3.} 15. Be3 {[%emt 0:05:38]} (15. Bh2 $1 $14 Bh6 16. Ng5) 15... Ng3 $11 {[%emt 0:01:08]} 16. Rhe1 {[%emt 0:00:59]} Bf5 {[%emt 0:02:39]} 17. Rd2 {[%emt 0:01:46]} Rad8 {[%emt 0:01:34]} 18. Bd1 {[%emt 0:02:20]} Bh6 {[%emt 0:10:25]} 19. a3 {[%emt 0:05:01]} (19. Ng5 {feels hotter.} f6 20. exf6 exf6 21. a3) 19... Nc6 {[%emt 0:00:29]} 20. Ne2 {[%emt 0:07:56]} Nxe2+ {[%emt 0:01:33]} (20... Ne4 $15 21. Rxd8 Rxd8) 21. Rexe2 {[%emt 0:05:21]} Nd4 {[%emt 0:02:12]} 22. Rf2 {[%emt 0:01:02][%cal Rf3d4]} Nc6 {[%emt 0:05:56]} 23. c4 {[%emt 0:13:53]} Be4 {[%emt 0:03:22]} 24. b3 {[%emt 0:05:06]} Rd3 {[%emt 0:08:09]} 25. Rxd3 {[%emt 0:03:11]} Bxd3 {[%emt 0:00:02]} 26. Bc2 {[%emt 0:00:30]} Rd8 {[%emt 0:03:49]} 27. Rd2 {[%emt 0:03:06]} Bf1 {[%emt 0:00:56]} (27... Bxc2 $14 28. Rxd8+ (28. Kxc2 Rxd2+ 29. Bxd2 f6 $11) 28... Nxd8 29. Kxc2 Nc6) 28. Rf2 $2 {[%emt 0:11:46]} (28. Be4 $18) 28... Bd3 {[%emt 0:02:37]} 29. Kb2 {[%emt 0:00:59]} f6 {[%emt 0:06:51]} 30. exf6 {[%emt 0:07:35]} exf6 {[%emt 0:00:11]} 31. Rd2 $36 {[%emt 0:00:53][%mdl 2048] White has the initiative.} Bf1 {[%emt 0:01:04]} 32. Be4 {[%emt 0:02:18]} Re8 {[%emt 0:05:25]} 33. Bxc6 {[%emt 0:05:12]} (33. Bd5+ $142 Kf8 34. Nh2 (34. Bxc6 Rxe3 35. Nh2 Be2 $11) 34... Rxe3 35. Nxf1) 33... Rxe3 {[%emt 0:00:09]} 34. Rd8+ {[%emt 0:01:51]} Bf8 {[%emt 0:00:04]} ({Black should try} 34... Kf7 $15 35. Rd7+ Re7 36. Bd5+ Ke8 37. Rxe7+ Kxe7) 35. Bd5+ {[%emt 0:00:32]} Kg7 {[%emt 0:00:09]} 36. Nd2 {[%emt 0:01:09]} ({But not} 36. Rd7+ Re7 37. Rxe7+ Bxe7 $11) (36. Nh2 $5 {[%cal Rh2f1]} Bxg2 37. Rd7+ Kh8 38. Bxg2 Re2+ 39. Kc1 Rxg2 40. Ng4 $11) 36... Re2 $2 {[%emt 0:04:25] Black is now going downhill.} (36... Bd3 $1 $11) 37. Kc3 $2 {[%emt 0:00:44]} (37. Kc2 $16) 37... Bxg2 $2 {[%emt 0:00:25][%mdl 8192]} (37... Re3+ $1 $11 38. Kb2 Bd3) 38. Kd3 $18 {[%emt 0:03:23]} Rxd2+ {[%emt 0:02:54]} 39. Kxd2 {[%emt 0:00:00]} Bxh3 {[%emt 0:00:26][%mdl 4096] Endgame KRB-KB} 40. Ra8 {[%emt 0:00:00]} g5 $2 {[%emt 0:03:06]} (40... a5 41. Ra7+ Kh6) 41. Rxa7+ {[%emt 0:29:06]} Kg6 {[%emt 0:31:33]} 42. fxg5 {[%emt 0:01:00]} fxg5 {[%emt 0:00:15]} 43. Be4+ {[%emt 0:00:25]} Kf6 {[%emt 0:00:00]} 44. Rxh7 {[%emt 0:00:00]} g4 {[%emt 0:00:00]} 45. Rh5 {[%emt 0:00:00]} Bd6 {[%emt 0:00:00]} 46. Ke3 {[%emt 0:00:00] Against Bf4+} Bf8 {[%emt 0:00:00]} 47. Rf5+ {[%emt 0:00:00]} Ke7 {[%emt 0:00:00]} 48. Rh5 {[%emt 0:00:00] Inhibits Bh6+.} Kf6 $1 {[%emt 0:00:00]} 49. Kf2 {[%emt 0:00:00]} Bd6 {[%emt 0:00:00]} 50. Kg1 {[%emt 0:00:00]} Be5 {[%emt 0:00:00]} 51. Rh6+ {[%emt 0:00:00]} Kg5 {[%emt 0:00:00]} 52. Rxb6 {[%emt 0:00:00] Bg2 is the strong threat.} g3 {[%emt 0:00:00]} 53. Bg2 {[%emt 0:00:00]} Bd4+ {[%emt 0:00:00]} 54. Kh1 {[%emt 0:00:00]} Bg4 {[%emt 0:02:47]} 55. a4 {[%emt 0:00:00] Strongly threatening a5.} Bc3 {[%emt 0:03:20]} 56. Rb5 {[%emt 0:02:04]} Bb4 {[%emt 0:01:24]} 57. a5 {[%emt 0:00:06]} (57. Bb7 $142 Kf4 {[#]} 58. Rxb4 $1 {[%mdl 512]} cxb4 59. a5) 57... Kf4 {[%emt 0:00:04]} 58. a6 {[%emt 0:00:39] White mates.} Bd1 {[%emt 0:01:04]} 59. a7 {[%emt 0:00:44]} Bxb3 {[%emt 0:00:09]} 60. a8=Q {[%emt 0:00:08] Weighted Error Value: White=0.41/Black=0.63} 1-0

[Event "44th Chess Olympiad Women 2022"]
[Site "Chennai"]
[Date "2022.08.09"]
[Round "11.34"]
[White "Mongeli, Sasha"]
[Black "Goossens, Hanne"]
[Result "1/2-1/2"]
[ECO "B37"]
[WhiteElo "1672"]
[BlackElo "2159"]
[Annotator "RC"]
[PlyCount "82"]
[EventDate "2022.07.29"]
[EventType "team-tourn"]
[EventCountry "IND"]
[SourceTitle "playchess.com"]
[Source "ChessBase"]
[SourceQuality "1"]
[WhiteTeam "Kenya"]
[BlackTeam "Belgium"]
[WhiteTeamCountry "KEN"]
[BlackTeamCountry "BEL"]
[TimeControl "40/5400+30:1800+30"]

1. Nf3 {[%emt 0:00:33]} c5 {[%emt 0:02:59]} 2. c4 {[%emt 0:03:51]} Nc6 {[%emt 0:00:15]} 3. d4 {[%emt 0:03:24]} cxd4 {[%emt 0:00:18]} 4. Nxd4 {[%emt 0:00:11]} g6 {[%emt 0:02:35]} 5. e4 {[%emt 0:08:52]} Bg7 {[%emt 0:00:21]} 6. Nc2 {[%emt 0:02:34]} d6 {[%emt 0:00:51]} 7. Be2 {[%emt 0:02:02]} Be6 {[%emt 0:01:26]} 8. O-O {[%emt 0:01:54]} Rc8 {[%emt 0:01:17]} 9. Nd2 {[%emt 0:04:58]} Nf6 {[%emt 0:07:34]} 10. Rb1 {[%emt 0:03:03]} Qb6 {[%emt 0:05:36]} 11. b3 {[%emt 0:05:04]} Nd4 {[%emt 0:01:04]} 12. Nxd4 {[%emt 0:07:26]} Qxd4 {[%emt 0:00:07]} 13. Bb2 {[%emt 0:00:16]} Qb6 {[%emt 0:01:05]} 14. Nf3 {[%emt 0:10:36]} O-O {[%emt 0:01:20]} 15. Qc2 {[%emt 0:06:09]} Qc7 {[%emt 0:05:44]} 16. Nd4 {[%emt 0:01:40]} Bd7 {[%emt 0:00:29]} 17. Qd3 {[%emt 0:01:26]} a6 {[%emt 0:04:18]} 18. Nc2 {[%emt 0:04:19]} Rfd8 {[%emt 0:16:24]} 19. Ne3 {[%emt 0:02:47]} e6 {[%emt 0:01:48]} 20. Rfd1 {[%emt 0:02:24]} Bc6 {[%emt 0:01:55]} 21. f3 {[%emt 0:01:15]} b5 {[%emt 0:04:55]} 22. Kh1 {[%emt 0:03:32]} Rd7 {[%emt 0:03:09]} 23. Qc2 {[%emt 0:02:50]} Qb7 {[%emt 0:02:27]} 24. e5 {[%emt 0:04:13]} dxe5 {[%emt 0:02:20]} 25. Bxe5 {[%emt 0:00:29]} Rcd8 {[%emt 0:07:55]} 26. Rxd7 {[%emt 0:00:45]} Rxd7 {[%emt 0:00:55]} 27. cxb5 {[%emt 0:03:36]} Bxb5 {[%emt 0:03:02]} 28. Bxb5 {[%emt 0:00:42]} axb5 {[%emt 0:00:25]} 29. Rc1 {[%emt 0:01:03]} Ne8 {[%emt 0:06:09]} 30. Bxg7 {[%emt 0:01:35]} Kxg7 {[%emt 0:00:40]} 31. Qc3+ {[%emt 0:00:32]} f6 {[%emt 0:00:50]} 32. Qc8 {[%emt 0:04:00]} Qxc8 {[%emt 0:04:45]} 33. Rxc8 {[%emt 0:00:07]} Rd3 {[%emt 0:03:10]} 34. Nf1 {[%emt 0:04:48]} Nd6 {[%emt 0:01:26]} 35. Rc7+ {[%emt 0:00:37]} Kh6 {[%emt 0:00:54]} 36. Kg1 {[%emt 0:00:13]} g5 {[%emt 0:02:05]} 37. Kf2 {[%emt 0:00:35]} Kg6 {[%emt 0:00:56]} 38. Ke2 {[%emt 0:00:21]} Rd4 {[%emt 0:00:54]} 39. Ne3 {[%emt 0:00:33]} h5 {[%emt 0:01:24]} 40. Rc2 {[%emt 0:03:02]} h4 {[%emt 0:03:56]} 41. Rd2 {[%emt 0:31:10]} Rxd2+ {[%emt 0:06:07]} 1/2-1/2